[Event "Titled Tuesday Blitz May 2 Late 2023"]
[White "Marek, Matyas"]
[Black "Prydun, Andriy"]
[WhiteFideId "335398"]
[BlackFideId "14145898"]
[WhiteElo "2279"]
[BlackElo "2164"]
[Result "0-1"]
[Round "11"]
[TimeControl "180+2"]
[Date "2023.05.02"]
[WhiteClock "0:00:15"]
[BlackClock "0:00:08"]

1. Nf3 {[%clk 0:02:59]}  g6 {[%clk 0:02:30]} 2. g3 {[%clk 0:03:00]}  Bg7 {[%clk 0:02:30]} 3. Bg2 {[%clk 0:02:59]}  e5 {[%clk 0:02:30]} 4. O-O {[%clk 0:03:00]}  Ne7 {[%clk 0:02:30]} 5. d3 {[%clk 0:03:01]}  O-O {[%clk 0:02:28]} 6. e4 {[%clk 0:03:02]}  Nbc6 {[%clk 0:02:27]} 7. Nbd2 {[%clk 0:03:00]}  d5 {[%clk 0:02:27]} 8. Re1 {[%clk 0:03:00]}  h6 {[%clk 0:02:27]} 9. c3 {[%clk 0:02:55]}  g5 {[%clk 0:02:26]} 10. b4 {[%clk 0:02:37]}  a6 {[%clk 0:02:25]} 11. Bb2 {[%clk 0:02:36]}  Be6 {[%clk 0:02:15]} 12. a4 {[%clk 0:02:35]}  d4 {[%clk 0:02:05]} 13. b5 {[%clk 0:02:15]}  dxc3 {[%clk 0:02:03]} 14. Bxc3 {[%clk 0:02:16]}  Nd4 {[%clk 0:02:03]} 15. Nxd4 {[%clk 0:02:03]}  exd4 {[%clk 0:02:04]} 16. Bb4 {[%clk 0:02:02]}  g4 {[%clk 0:01:51]} 17. Nc4 {[%clk 0:01:44]}  Re8 {[%clk 0:01:43]} 18. Rc1 {[%clk 0:01:37]}  axb5 {[%clk 0:01:36]} 19. axb5 {[%clk 0:01:38]}  Ng6 {[%clk 0:01:35]} 20. b6 {[%clk 0:01:32]}  Bxc4 {[%clk 0:00:59]} 21. bxc7 {[%clk 0:01:28]}  Qxc7 {[%clk 0:01:00]} 22. Rxc4 {[%clk 0:01:28]}  Qd7 {[%clk 0:00:57]} 23. Rc5 {[%clk 0:01:24]}  Ne5 {[%clk 0:00:33]} 24. Rd5 {[%clk 0:01:24]}  Qa4 {[%clk 0:00:28]} 25. Qd2 {[%clk 0:01:13]}  Nxd3 {[%clk 0:00:25]} 26. Qxd3 {[%clk 0:01:08]}  Qxb4 {[%clk 0:00:26]} 27. Rb1 {[%clk 0:01:08]}  Qc3 {[%clk 0:00:23]} 28. Bf1 {[%clk 0:01:00]}  Ra3 {[%clk 0:00:23]} 29. Qe2 {[%clk 0:00:54]}  Qf3 {[%clk 0:00:15]} 30. Rf5 {[%clk 0:00:32]}  Qxf5 {[%clk 0:00:13]} 31. exf5 {[%clk 0:00:29]}  Rxe2 {[%clk 0:00:13]} 32. Bxe2 {[%clk 0:00:30]}  h5 {[%clk 0:00:10]} 33. Rxb7 {[%clk 0:00:27]}  d3 {[%clk 0:00:10]} 34. Bxd3 {[%clk 0:00:17]}  Rxd3 {[%clk 0:00:10]} 35. Kg2 {[%clk 0:00:17]}  Rd5 {[%clk 0:00:09]} 36. h3 {[%clk 0:00:15]}  Rxf5 {[%clk 0:00:08]} 37. hxg4 {[%clk 0:00:16]}  hxg4 {[%clk 0:00:08]} 38. Rb4 {[%clk 0:00:16]}  Rg5 {[%clk 0:00:09]} 39. Kf1 {[%clk 0:00:16]}  Kh7 {[%clk 0:00:09]} 40. Ke2 {[%clk 0:00:17]}  Kg6 {[%clk 0:00:10]} 41. Ke3 {[%clk 0:00:17]}  Bh6 {[%clk 0:00:07]} 42. Ke4 {[%clk 0:00:17]}  Rf5 {[%clk 0:00:07]} 43. Rb6+ {[%clk 0:00:17]}  Rf6 {[%clk 0:00:07]} 44. Rb2 {[%clk 0:00:18]}  Rf3 {[%clk 0:00:07]} 45. Re2 {[%clk 0:00:17]}  f5+ {[%clk 0:00:06]} 46. Ke5 {[%clk 0:00:17]}  Bg7+ {[%clk 0:00:06]} 47. Ke6 {[%clk 0:00:17]}  Bf6 {[%clk 0:00:07]} 48. Rc2 {[%clk 0:00:17]}  Rd3 {[%clk 0:00:07]} 49. Rc5 {[%clk 0:00:15]}  Rd2 {[%clk 0:00:06]} 50. Rc6 {[%clk 0:00:11]}  Re2+ {[%clk 0:00:05]} 51. Kd5 {[%clk 0:00:11]}  Rxf2 {[%clk 0:00:06]} 52. Rb6 {[%clk 0:00:12]}  Rf3 {[%clk 0:00:06]} 53. Ke6 {[%clk 0:00:12]}  Re3+ {[%clk 0:00:06]} 54. Kd7 {[%clk 0:00:13]}  Rxg3 {[%clk 0:00:07]} 55. Ke8 {[%clk 0:00:13]}  Re3+ {[%clk 0:00:07]} 56. Kf8 {[%clk 0:00:13]}  Rd3 {[%clk 0:00:07]} 57. Rb8 {[%clk 0:00:13]}  Rd8+ {[%clk 0:00:07]} 58. Rxd8 {[%clk 0:00:14]}  Bxd8 {[%clk 0:00:08]} 59. Ke8 {[%clk 0:00:15]}  Bb6 {[%clk 0:00:08]} 0-1


[Site "https://www.chess.com"]

[Event "Titled Tuesday Blitz May 2 Late 2023"]
[White "Yoo, Christopher Woojin"]
[Black "Kavutskiy, Konstantin"]
[WhiteFideId "30909694"]
[BlackFideId "2026384"]
[WhiteElo "2519"]
[BlackElo "2323"]
[Result "1-0"]
[Round "11"]
[TimeControl "180+2"]
[Date "2023.05.02"]
[WhiteClock "0:02:20"]
[BlackClock "0:00:28"]

1. e4 {[%clk 0:02:55]}  c5 {[%clk 0:02:59]} 2. Nf3 {[%clk 0:02:56]}  Nc6 {[%clk 0:02:59]} 3. b4 {[%clk 0:02:55]}  cxb4 {[%clk 0:02:49]} 4. d4 {[%clk 0:02:56]}  d5 {[%clk 0:02:46]} 5. exd5 {[%clk 0:02:57]}  Qxd5 {[%clk 0:02:46]} 6. c4 {[%clk 0:02:58]}  Qa5 {[%clk 0:02:25]} 7. d5 {[%clk 0:02:55]}  Nb8 {[%clk 0:02:09]} 8. Bb2 {[%clk 0:02:55]}  Nf6 {[%clk 0:02:05]} 9. Nbd2 {[%clk 0:02:56]}  e6 {[%clk 0:01:59]} 10. Nb3 {[%clk 0:02:52]}  Qd8 {[%clk 0:01:39]} 11. Qc2 {[%clk 0:02:52]}  exd5 {[%clk 0:01:34]} 12. cxd5 {[%clk 0:02:53]}  Bd6 {[%clk 0:01:31]} 13. Bd3 {[%clk 0:02:49]}  Qe7+ {[%clk 0:01:23]} 14. Kf1 {[%clk 0:02:45]}  O-O {[%clk 0:01:21]} 15. Re1 {[%clk 0:02:45]}  Qd8 {[%clk 0:01:11]} 16. h4 {[%clk 0:02:39]}  Bg4 {[%clk 0:01:05]} 17. Ng5 {[%clk 0:02:39]}  h6 {[%clk 0:01:03]} 18. Bh7+ {[%clk 0:02:38]}  Kh8 {[%clk 0:00:57]} 19. Bg8 {[%clk 0:02:21]}  g6 {[%clk 0:00:38]} 20. Nxf7+ {[%clk 0:02:18]}  Rxf7 {[%clk 0:00:36]} 21. Bxf7 {[%clk 0:02:19]}  Bf5 {[%clk 0:00:34]} 22. Qd2 {[%clk 0:02:18]}  Kg7 {[%clk 0:00:33]} 23. Be6 {[%clk 0:02:19]}  Nd7 {[%clk 0:00:28]} 24. Bxf5 {[%clk 0:02:20]}  gxf5 {[%clk 0:00:28]} 25. Nd4 {[%clk 0:02:20]} 1-0


[Site "https://www.chess.com"]

[Event "Titled Tuesday Blitz May 2 Late 2023"]
[White "Shapiro, Viktor"]
[Black "Baskin, Robert"]
[WhiteFideId "4175700"]
[BlackFideId "24662402"]
[WhiteElo "2152"]
[BlackElo "2472"]
[Result "1-0"]
[Round "11"]
[TimeControl "180+2"]
[Date "2023.05.02"]
[WhiteClock "0:02:06"]
[BlackClock "0:02:10"]

1. c4 {[%clk 0:03:00]}  e5 {[%clk 0:02:59]} 2. Nc3 {[%clk 0:03:00]}  Nf6 {[%clk 0:02:59]} 3. g3 {[%clk 0:03:00]}  Bb4 {[%clk 0:02:54]} 4. Bg2 {[%clk 0:03:00]}  O-O {[%clk 0:02:53]} 5. Nf3 {[%clk 0:03:00]}  Re8 {[%clk 0:02:53]} 6. O-O {[%clk 0:03:00]}  c6 {[%clk 0:02:52]} 7. d4 {[%clk 0:02:55]}  e4 {[%clk 0:02:51]} 8. Ne1 {[%clk 0:02:54]}  d5 {[%clk 0:02:50]} 9. cxd5 {[%clk 0:02:54]}  cxd5 {[%clk 0:02:50]} 10. Nc2 {[%clk 0:02:55]}  Bxc3 {[%clk 0:02:47]} 11. bxc3 {[%clk 0:02:55]}  Nc6 {[%clk 0:02:47]} 12. Bg5 {[%clk 0:02:55]}  h6 {[%clk 0:02:47]} 13. Bxf6 {[%clk 0:02:55]}  Qxf6 {[%clk 0:02:47]} 14. Ne3 {[%clk 0:02:56]}  Be6 {[%clk 0:02:46]} 15. f3 {[%clk 0:02:44]}  exf3 {[%clk 0:02:44]} 16. Bxf3 {[%clk 0:02:44]}  Qg5 {[%clk 0:02:43]} 17. Qd3 {[%clk 0:02:36]}  Bh3 {[%clk 0:02:41]} 18. Ng2 {[%clk 0:02:35]}  Rac8 {[%clk 0:02:30]} 19. Rab1 {[%clk 0:02:34]}  Bf5 {[%clk 0:02:25]} 20. Qb5 {[%clk 0:02:25]}  Bxb1 {[%clk 0:02:23]} 21. Rxb1 {[%clk 0:02:20]}  Ne7 {[%clk 0:02:23]} 22. Nf4 {[%clk 0:02:17]}  Rxc3 {[%clk 0:02:22]} 23. Qxe8+ {[%clk 0:02:16]}  Kh7 {[%clk 0:02:17]} 24. Qxf7 {[%clk 0:02:16]}  b6 {[%clk 0:02:12]} 25. Ne6 {[%clk 0:02:08]}  Qe3+ {[%clk 0:02:10]} 26. Kg2 {[%clk 0:02:06]} 1-0


[Site "https://www.chess.com"]

[Event "Titled Tuesday Blitz May 2 Late 2023"]
[White "Yeritsyan, Hayk"]
[Black "Adewumi, Tanitoluwa"]
[WhiteFideId "13307320"]
[BlackFideId "30966396"]
[WhiteElo "2241"]
[BlackElo "2283"]
[Result "1-0"]
[Round "11"]
[TimeControl "180+2"]
[Date "2023.05.02"]
[WhiteClock "0:00:07"]
[BlackClock "0:00:07"]

1. d4 {[%clk 0:03:00]}  Nf6 {[%clk 0:02:42]} 2. Nf3 {[%clk 0:03:00]}  e6 {[%clk 0:02:42]} 3. e3 {[%clk 0:03:01]}  b6 {[%clk 0:02:42]} 4. Bd3 {[%clk 0:03:02]}  Bb7 {[%clk 0:02:42]} 5. Nbd2 {[%clk 0:03:02]}  d5 {[%clk 0:02:43]} 6. Ne5 {[%clk 0:03:02]}  Bd6 {[%clk 0:02:44]} 7. f4 {[%clk 0:03:02]}  Nbd7 {[%clk 0:02:44]} 8. O-O {[%clk 0:03:02]}  c5 {[%clk 0:02:45]} 9. c3 {[%clk 0:03:02]}  Ne4 {[%clk 0:02:44]} 10. Nxe4 {[%clk 0:03:02]}  dxe4 {[%clk 0:02:39]} 11. Bb5 {[%clk 0:03:02]}  Bxe5 {[%clk 0:02:39]} 12. fxe5 {[%clk 0:03:00]}  O-O {[%clk 0:02:37]} 13. Bxd7 {[%clk 0:02:48]}  Qxd7 {[%clk 0:02:37]} 14. Qg4 {[%clk 0:02:49]}  Kh8 {[%clk 0:02:34]} 15. Qg5 {[%clk 0:02:48]}  Ba6 {[%clk 0:02:25]} 16. Rf4 {[%clk 0:02:47]}  Qb5 {[%clk 0:02:21]} 17. Bd2 {[%clk 0:02:38]}  Qd3 {[%clk 0:02:19]} 18. Rg4 {[%clk 0:02:10]}  Rg8 {[%clk 0:02:13]} 19. Rh4 {[%clk 0:01:54]}  Rgf8 {[%clk 0:02:11]} 20. Rg4 {[%clk 0:01:50]}  Rg8 {[%clk 0:01:59]} 21. Rh4 {[%clk 0:01:48]}  g6 {[%clk 0:01:58]} 22. Qf6+ {[%clk 0:01:09]}  Rg7 {[%clk 0:01:58]} 23. Qf2 {[%clk 0:01:00]}  Rf8 {[%clk 0:01:54]} 24. h3 {[%clk 0:00:57]}  f5 {[%clk 0:01:34]} 25. exf6 {[%clk 0:00:54]}  Rgf7 {[%clk 0:01:35]} 26. Be1 {[%clk 0:00:19]}  Rxf6 {[%clk 0:01:30]} 27. Qg3 {[%clk 0:00:12]}  Kg8 {[%clk 0:00:56]} 28. Kh2 {[%clk 0:00:11]}  Qf1 {[%clk 0:00:38]} 29. dxc5 {[%clk 0:00:05]}  bxc5 {[%clk 0:00:36]} 30. c4 {[%clk 0:00:04]}  Bxc4 {[%clk 0:00:34]} 31. b3 {[%clk 0:00:05]}  Be2 {[%clk 0:00:29]} 32. Bc3 {[%clk 0:00:05]}  Qf2 {[%clk 0:00:25]} 33. Bxf6 {[%clk 0:00:05]}  Qxg3+ {[%clk 0:00:22]} 34. Kxg3 {[%clk 0:00:05]}  Rxf6 {[%clk 0:00:23]} 35. Rxe4 {[%clk 0:00:05]}  Kg7 {[%clk 0:00:20]} 36. Rf4 {[%clk 0:00:05]}  Rf5 {[%clk 0:00:19]} 37. Rxf5 {[%clk 0:00:05]}  gxf5 {[%clk 0:00:20]} 38. Kf4 {[%clk 0:00:05]}  Kf6 {[%clk 0:00:20]} 39. e4 {[%clk 0:00:06]}  e5+ {[%clk 0:00:21]} 40. Ke3 {[%clk 0:00:06]}  Bb5 {[%clk 0:00:17]} 41. exf5 {[%clk 0:00:07]}  Kxf5 {[%clk 0:00:18]} 42. g3 {[%clk 0:00:07]}  h5 {[%clk 0:00:18]} 43. h4 {[%clk 0:00:08]}  Kg4 {[%clk 0:00:17]} 44. Kf2 {[%clk 0:00:08]}  e4 {[%clk 0:00:16]} 45. Rc1 {[%clk 0:00:08]}  e3+ {[%clk 0:00:11]} 46. Kxe3 {[%clk 0:00:09]}  Kxg3 {[%clk 0:00:12]} 47. Rxc5 {[%clk 0:00:09]}  Be8 {[%clk 0:00:13]} 48. Rc4 {[%clk 0:00:09]}  Bf7 {[%clk 0:00:12]} 49. Rd4 {[%clk 0:00:09]}  a5 {[%clk 0:00:12]} 50. Ra4 {[%clk 0:00:08]}  Bg6 {[%clk 0:00:11]} 51. Rxa5 {[%clk 0:00:08]}  Kxh4 {[%clk 0:00:11]} 52. Kf2 {[%clk 0:00:08]}  Kh3 {[%clk 0:00:11]} 53. Rg5 {[%clk 0:00:07]}  Bf7 {[%clk 0:00:11]} 54. Rg7 {[%clk 0:00:08]}  Be6 {[%clk 0:00:10]} 55. Rg6 {[%clk 0:00:06]}  Bf7 {[%clk 0:00:09]} 56. Rh6 {[%clk 0:00:06]}  h4 {[%clk 0:00:08]} 57. Kf3 {[%clk 0:00:06]}  Bd5+ {[%clk 0:00:07]} 58. Kf4 {[%clk 0:00:07]} 1-0


[Site "https://www.chess.com"]

[Event "Titled Tuesday Blitz May 2 Late 2023"]
[White "Adan Bermudez, Sergio"]
[Black "Osmonbekov, Talaibek"]
[WhiteFideId "2292726"]
[BlackFideId "2017253"]
[WhiteElo "2292"]
[BlackElo "2135"]
[Result "0-1"]
[Round "11"]
[TimeControl "180+2"]
[Date "2023.05.02"]
[WhiteClock "0:01:43"]
[BlackClock "0:00:47"]

1. c4 {[%clk 0:03:00]}  e5 {[%clk 0:02:59]} 2. Nc3 {[%clk 0:03:01]}  d6 {[%clk 0:02:59]} 3. g3 {[%clk 0:03:01]}  f5 {[%clk 0:03:00]} 4. Bg2 {[%clk 0:03:01]}  Nf6 {[%clk 0:03:00]} 5. d4 {[%clk 0:03:01]}  e4 {[%clk 0:02:59]} 6. f3 {[%clk 0:03:01]}  Qe7 {[%clk 0:02:43]} 7. fxe4 {[%clk 0:02:58]}  fxe4 {[%clk 0:02:37]} 8. Bg5 {[%clk 0:02:57]}  Bf5 {[%clk 0:02:34]} 9. Nd5 {[%clk 0:02:45]}  Qf7 {[%clk 0:02:25]} 10. Bxf6 {[%clk 0:02:44]}  gxf6 {[%clk 0:02:24]} 11. Qb3 {[%clk 0:02:44]}  c6 {[%clk 0:02:18]} 12. Nxf6+ {[%clk 0:02:39]}  Qxf6 {[%clk 0:02:12]} 13. Qxb7 {[%clk 0:02:39]}  Bh6 {[%clk 0:02:04]} 14. Qxa8 {[%clk 0:02:33]}  O-O {[%clk 0:02:04]} 15. Qxa7 {[%clk 0:02:32]}  Be3 {[%clk 0:01:49]} 16. Nh3 {[%clk 0:02:08]}  Bxd4 {[%clk 0:01:28]} 17. Qb7 {[%clk 0:01:49]}  Bxh3 {[%clk 0:00:50]} 18. Rf1 {[%clk 0:01:43]}  Bf2+ {[%clk 0:00:47]} 0-1


[Site "https://www.chess.com"]

[Event "Titled Tuesday Blitz May 2 Late 2023"]
[White "Bryant, Todd"]
[Black "Spitzl, Vinzent"]
[WhiteFideId "2031299"]
[BlackFideId "12901253"]
[WhiteElo "2075"]
[BlackElo "2225"]
[Result "0-1"]
[Round "11"]
[TimeControl "180+2"]
[Date "2023.05.02"]
[WhiteClock "0:00:05"]
[BlackClock "0:00:24"]

1. e4 {[%clk 0:03:00]}  c5 {[%clk 0:02:59]} 2. Nf3 {[%clk 0:03:00]}  d6 {[%clk 0:02:59]} 3. d4 {[%clk 0:03:00]}  cxd4 {[%clk 0:03:00]} 4. Nxd4 {[%clk 0:03:01]}  Nf6 {[%clk 0:03:01]} 5. Nc3 {[%clk 0:03:02]}  a6 {[%clk 0:03:01]} 6. Bg5 {[%clk 0:03:02]}  e6 {[%clk 0:03:01]} 7. f4 {[%clk 0:03:02]}  Qc7 {[%clk 0:03:01]} 8. Qe2 {[%clk 0:03:00]}  b5 {[%clk 0:03:00]} 9. a3 {[%clk 0:02:58]}  Bb7 {[%clk 0:02:53]} 10. O-O-O {[%clk 0:02:58]}  Nbd7 {[%clk 0:02:52]} 11. g4 {[%clk 0:02:55]}  Be7 {[%clk 0:02:52]} 12. Kb1 {[%clk 0:02:32]}  Rc8 {[%clk 0:02:48]} 13. Bh4 {[%clk 0:02:30]}  Nc5 {[%clk 0:02:42]} 14. Bxf6 {[%clk 0:02:16]}  Bxf6 {[%clk 0:02:41]} 15. h4 {[%clk 0:02:16]}  O-O {[%clk 0:02:21]} 16. g5 {[%clk 0:02:07]}  Bxd4 {[%clk 0:02:19]} 17. Rxd4 {[%clk 0:02:08]}  e5 {[%clk 0:02:16]} 18. Rd1 {[%clk 0:01:56]}  exf4 {[%clk 0:02:08]} 19. Bh3 {[%clk 0:01:30]}  Rce8 {[%clk 0:02:05]} 20. Rhe1 {[%clk 0:01:03]}  Nxe4 {[%clk 0:02:00]} 21. Nxe4 {[%clk 0:00:59]}  Rxe4 {[%clk 0:01:54]} 22. Qd2 {[%clk 0:00:55]}  d5 {[%clk 0:01:43]} 23. Bf5 {[%clk 0:00:51]}  Rxe1 {[%clk 0:01:39]} 24. Rxe1 {[%clk 0:00:52]}  g6 {[%clk 0:01:39]} 25. Bd3 {[%clk 0:00:50]}  Qd6 {[%clk 0:01:34]} 26. h5 {[%clk 0:00:49]}  d4 {[%clk 0:01:29]} 27. Qe2 {[%clk 0:00:35]}  Bc6 {[%clk 0:01:25]} 28. h6 {[%clk 0:00:18]}  f3 {[%clk 0:01:20]} 29. Qe7 {[%clk 0:00:17]}  Qxe7 {[%clk 0:01:14]} 30. Rxe7 {[%clk 0:00:17]}  Re8 {[%clk 0:01:06]} 31. Rc7 {[%clk 0:00:13]}  Bd5 {[%clk 0:01:01]} 32. b3 {[%clk 0:00:14]}  f2 {[%clk 0:00:57]} 33. Kb2 {[%clk 0:00:14]}  Bg2 {[%clk 0:00:54]} 34. Rd7 {[%clk 0:00:13]}  f1=Q {[%clk 0:00:52]} 35. Bxf1 {[%clk 0:00:13]}  Bxf1 {[%clk 0:00:53]} 36. Rxd4 {[%clk 0:00:14]}  f6 {[%clk 0:00:47]} 37. Rf4 {[%clk 0:00:10]}  Bh3 {[%clk 0:00:36]} 38. Rxf6 {[%clk 0:00:10]}  Re6 {[%clk 0:00:36]} 39. Rf3 {[%clk 0:00:07]}  Bf5 {[%clk 0:00:35]} 40. Rc3 {[%clk 0:00:05]}  Kf7 {[%clk 0:00:34]} 41. Rc7+ {[%clk 0:00:05]}  Re7 {[%clk 0:00:34]} 42. Rc6 {[%clk 0:00:06]}  Re2 {[%clk 0:00:29]} 43. Rc7+ {[%clk 0:00:04]}  Ke6 {[%clk 0:00:27]} 44. Rxh7 {[%clk 0:00:04]}  Rxc2+ {[%clk 0:00:28]} 45. Ka1 {[%clk 0:00:04]}  Rg2 {[%clk 0:00:27]} 46. Ra7 {[%clk 0:00:03]}  Rxg5 {[%clk 0:00:26]} 47. Rxa6+ {[%clk 0:00:03]}  Ke5 {[%clk 0:00:26]} 48. Ra7 {[%clk 0:00:04]}  Rh5 {[%clk 0:00:25]} 49. Rh7 {[%clk 0:00:04]}  g5 {[%clk 0:00:24]} 50. Kb2 {[%clk 0:00:03]}  Bxh7 {[%clk 0:00:24]} 51. Kc3 {[%clk 0:00:03]}  Rxh6 {[%clk 0:00:24]} 52. Kb4 {[%clk 0:00:03]}  g4 {[%clk 0:00:24]} 53. Kc5 {[%clk 0:00:04]}  g3 {[%clk 0:00:25]} 54. a4 {[%clk 0:00:04]}  g2 {[%clk 0:00:25]} 55. a5 {[%clk 0:00:04]}  g1=Q+ {[%clk 0:00:25]} 56. Kb4 {[%clk 0:00:04]}  Qd4+ {[%clk 0:00:25]} 57. Ka3 {[%clk 0:00:05]}  Rh1 {[%clk 0:00:25]} 58. a6 {[%clk 0:00:05]}  Ra1# {[%clk 0:00:24]} 0-1


[Site "https://www.chess.com"]

[Event "Titled Tuesday Blitz May 2 Late 2023"]
[White "Bilan, Danila"]
[Black "Jodorcovsky Werjivker, Paulo"]
[WhiteFideId "24161918"]
[BlackFideId "3700305"]
[WhiteElo "2182"]
[BlackElo "2120"]
[Result "1-0"]
[Round "11"]
[TimeControl "180+2"]
[Date "2023.05.02"]
[WhiteClock "0:00:08"]
[BlackClock "0:00:05"]

1. d4 {[%clk 0:03:00]}  f5 {[%clk 0:02:53]} 2. Nf3 {[%clk 0:03:00]}  Nf6 {[%clk 0:02:52]} 3. g3 {[%clk 0:03:00]}  e6 {[%clk 0:02:52]} 4. Bg2 {[%clk 0:03:00]}  Be7 {[%clk 0:02:53]} 5. O-O {[%clk 0:03:01]}  O-O {[%clk 0:02:53]} 6. c4 {[%clk 0:03:02]}  d6 {[%clk 0:02:53]} 7. Nc3 {[%clk 0:03:02]}  Ne4 {[%clk 0:02:54]} 8. Qc2 {[%clk 0:03:01]}  Nxc3 {[%clk 0:02:54]} 9. Qxc3 {[%clk 0:03:01]}  a5 {[%clk 0:02:54]} 10. b3 {[%clk 0:02:59]}  Nc6 {[%clk 0:02:54]} 11. Bb2 {[%clk 0:02:59]}  Bf6 {[%clk 0:02:55]} 12. Qc2 {[%clk 0:02:55]}  Qe7 {[%clk 0:02:34]} 13. e4 {[%clk 0:02:49]}  e5 {[%clk 0:02:34]} 14. dxe5 {[%clk 0:02:39]}  Nxe5 {[%clk 0:02:34]} 15. Nxe5 {[%clk 0:02:35]}  Bxe5 {[%clk 0:02:35]} 16. Bxe5 {[%clk 0:02:30]}  Qxe5 {[%clk 0:02:34]} 17. f4 {[%clk 0:02:22]}  Qc5+ {[%clk 0:02:28]} 18. Qf2 {[%clk 0:02:20]}  Qxf2+ {[%clk 0:02:27]} 19. Rxf2 {[%clk 0:02:14]}  fxe4 {[%clk 0:02:13]} 20. Bxe4 {[%clk 0:02:13]}  Rb8 {[%clk 0:02:08]} 21. Bd5+ {[%clk 0:02:03]}  Kh8 {[%clk 0:02:08]} 22. Re1 {[%clk 0:02:02]}  c6 {[%clk 0:01:59]} 23. Bg2 {[%clk 0:01:56]}  Bf5 {[%clk 0:01:54]} 24. Rfe2 {[%clk 0:01:53]}  a4 {[%clk 0:01:45]} 25. Re7 {[%clk 0:01:47]}  axb3 {[%clk 0:01:44]} 26. axb3 {[%clk 0:01:47]}  Kg8 {[%clk 0:01:41]} 27. h3 {[%clk 0:01:40]}  Rf7 {[%clk 0:01:40]} 28. g4 {[%clk 0:01:37]}  Bd7 {[%clk 0:01:37]} 29. Kh2 {[%clk 0:01:24]}  Kf8 {[%clk 0:01:34]} 30. Rxf7+ {[%clk 0:01:22]}  Kxf7 {[%clk 0:01:35]} 31. Kg3 {[%clk 0:01:22]}  Ra8 {[%clk 0:01:34]} 32. Rd1 {[%clk 0:01:20]}  Ke7 {[%clk 0:01:31]} 33. Be4 {[%clk 0:01:13]}  h6 {[%clk 0:01:29]} 34. Rd3 {[%clk 0:01:12]}  Ra2 {[%clk 0:01:13]} 35. h4 {[%clk 0:01:06]}  Re2 {[%clk 0:01:05]} 36. Bf3 {[%clk 0:01:01]}  Ra2 {[%clk 0:01:05]} 37. g5 {[%clk 0:00:56]}  hxg5 {[%clk 0:01:04]} 38. fxg5 {[%clk 0:00:54]}  Bf5 {[%clk 0:01:02]} 39. Re3+ {[%clk 0:00:54]}  Kf7 {[%clk 0:00:59]} 40. h5 {[%clk 0:00:54]}  Rd2 {[%clk 0:00:51]} 41. Kf4 {[%clk 0:00:47]}  Bc2 {[%clk 0:00:42]} 42. Be2 {[%clk 0:00:36]}  Rd4+ {[%clk 0:00:40]} 43. Kg3 {[%clk 0:00:34]}  d5 {[%clk 0:00:35]} 44. Rf3+ {[%clk 0:00:27]}  Ke7 {[%clk 0:00:32]} 45. Re3+ {[%clk 0:00:27]}  Re4 {[%clk 0:00:30]} 46. Rxe4+ {[%clk 0:00:24]}  Bxe4 {[%clk 0:00:31]} 47. cxd5 {[%clk 0:00:23]}  Bxd5 {[%clk 0:00:31]} 48. b4 {[%clk 0:00:22]}  b6 {[%clk 0:00:30]} 49. Kf4 {[%clk 0:00:21]}  Ke6 {[%clk 0:00:26]} 50. Bg4+ {[%clk 0:00:18]}  Kd6 {[%clk 0:00:24]} 51. h6 {[%clk 0:00:18]}  gxh6 {[%clk 0:00:12]} 52. gxh6 {[%clk 0:00:19]}  Bg8 {[%clk 0:00:13]} 53. Bf5 {[%clk 0:00:16]}  c5 {[%clk 0:00:13]} 54. b5 {[%clk 0:00:15]}  c4 {[%clk 0:00:13]} 55. Ke3 {[%clk 0:00:14]}  Kc5 {[%clk 0:00:13]} 56. Bd7 {[%clk 0:00:14]}  Bh7 {[%clk 0:00:12]} 57. Kd2 {[%clk 0:00:10]}  Kb4 {[%clk 0:00:12]} 58. Kc1 {[%clk 0:00:10]}  Kc3 {[%clk 0:00:12]} 59. Bc6 {[%clk 0:00:08]}  Kb4 {[%clk 0:00:11]} 60. Bd7 {[%clk 0:00:08]}  c3 {[%clk 0:00:11]} 61. Bg4 {[%clk 0:00:06]}  Kxb5 {[%clk 0:00:10]} 62. Bd1 {[%clk 0:00:06]}  Kc4 {[%clk 0:00:07]} 63. Bc2 {[%clk 0:00:05]}  Bg8 {[%clk 0:00:06]} 64. Bb1 {[%clk 0:00:05]}  b5 {[%clk 0:00:05]} 65. Ba2+ {[%clk 0:00:06]}  Kd3 {[%clk 0:00:04]} 66. Bxg8 {[%clk 0:00:07]}  b4 {[%clk 0:00:04]} 67. h7 {[%clk 0:00:07]}  b3 {[%clk 0:00:04]} 68. Bxb3 {[%clk 0:00:08]}  c2 {[%clk 0:00:04]} 69. Bxc2+ {[%clk 0:00:08]}  Kc3 {[%clk 0:00:05]} 70. h8=Q+ {[%clk 0:00:08]} 1-0


[Site "https://www.chess.com"]

[Event "Titled Tuesday Blitz May 2 Late 2023"]
[White "Ladan, Nicholas"]
[Black "Kohler, Aran"]
[WhiteFideId "30918855"]
[BlackFideId "1002856"]
[WhiteElo "2167"]
[BlackElo "2010"]
[Result "0-1"]
[Round "11"]
[TimeControl "180+2"]
[Date "2023.05.02"]
[WhiteClock "0:00:01"]
[BlackClock "0:00:27"]

1. a3 {[%clk 0:03:00]}  g6 {[%clk 0:02:59]} 2. g3 {[%clk 0:02:58]}  Bg7 {[%clk 0:02:59]} 3. Bg2 {[%clk 0:02:58]}  d6 {[%clk 0:03:00]} 4. Nf3 {[%clk 0:02:58]}  a6 {[%clk 0:03:00]} 5. d4 {[%clk 0:02:57]}  Nd7 {[%clk 0:02:59]} 6. c4 {[%clk 0:02:57]}  e5 {[%clk 0:02:58]} 7. Nc3 {[%clk 0:02:55]}  Ne7 {[%clk 0:02:54]} 8. O-O {[%clk 0:02:55]}  O-O {[%clk 0:02:53]} 9. e4 {[%clk 0:02:54]}  exd4 {[%clk 0:02:52]} 10. Nxd4 {[%clk 0:02:53]}  Ne5 {[%clk 0:02:53]} 11. Qe2 {[%clk 0:02:49]}  Rb8 {[%clk 0:02:50]} 12. Be3 {[%clk 0:02:47]}  Bg4 {[%clk 0:02:48]} 13. f3 {[%clk 0:02:47]}  Bd7 {[%clk 0:02:48]} 14. Rad1 {[%clk 0:02:43]}  Kh8 {[%clk 0:02:32]} 15. h3 {[%clk 0:02:41]}  N5c6 {[%clk 0:02:17]} 16. Kh2 {[%clk 0:02:37]}  Nxd4 {[%clk 0:02:17]} 17. Bxd4 {[%clk 0:02:38]}  Bxd4 {[%clk 0:02:12]} 18. Rxd4 {[%clk 0:02:39]}  Nc6 {[%clk 0:02:11]} 19. Rd2 {[%clk 0:02:35]}  f5 {[%clk 0:02:11]} 20. f4 {[%clk 0:02:32]}  fxe4 {[%clk 0:02:10]} 21. Nxe4 {[%clk 0:02:25]}  Qe7 {[%clk 0:02:08]} 22. Qd3 {[%clk 0:02:24]}  Rbe8 {[%clk 0:02:07]} 23. Ng5 {[%clk 0:02:21]}  Qg7 {[%clk 0:02:05]} 24. Re2 {[%clk 0:02:03]}  h6 {[%clk 0:02:03]} 25. Nf3 {[%clk 0:01:46]}  Bf5 {[%clk 0:02:02]} 26. Qd2 {[%clk 0:01:45]}  Qf7 {[%clk 0:01:41]} 27. Rfe1 {[%clk 0:01:39]}  Rxe2 {[%clk 0:01:38]} 28. Qxe2 {[%clk 0:01:37]}  Bd7 {[%clk 0:01:32]} 29. Qd2 {[%clk 0:01:11]}  Kh7 {[%clk 0:01:32]} 30. Nh4 {[%clk 0:01:01]}  Re8 {[%clk 0:01:30]} 31. Be4 {[%clk 0:00:54]}  Ne7 {[%clk 0:01:09]} 32. Bxb7 {[%clk 0:00:30]}  Qxc4 {[%clk 0:01:04]} 33. Be4 {[%clk 0:00:24]}  Qf7 {[%clk 0:00:56]} 34. Qc2 {[%clk 0:00:23]}  Nf5 {[%clk 0:00:53]} 35. Bxf5 {[%clk 0:00:09]}  Bxf5 {[%clk 0:00:53]} 36. Qd2 {[%clk 0:00:08]}  Rxe1 {[%clk 0:00:51]} 37. Qxe1 {[%clk 0:00:09]}  Bd7 {[%clk 0:00:39]} 38. Nf3 {[%clk 0:00:02]}  Qf5 {[%clk 0:00:31]} 39. Qe7+ {[%clk 0:00:01]}  Kg8 {[%clk 0:00:31]} 40. Qd8+ {[%clk 0:00:01]}  Kg7 {[%clk 0:00:29]} 41. Qxc7 {[%clk 0:00:01]}  Qxh3+ {[%clk 0:00:27]} 42. Kg1 {[%clk 0:00:01]}  Qxg3+ {[%clk 0:00:27]} 0-1


[Site "https://www.chess.com"]